[Event "36th Indian-ch U13 Open 2023"]
[Site "Secunderabad"]
[Date "2023.12.07"]
[Round "7.5"]
[White "Mridav M"]
[Black "Venkat, Raghav"]
[Result "0-1"]
[ECO "C50"]
[WhiteElo "1545"]
[BlackElo "2205"]
[Annotator "RC"]
[PlyCount "88"]
[EventDate "2023.12.04"]
[EventType "swiss"]
[EventCountry "IND"]
[SourceTitle "playchess.com"]
[Source "ChessBase"]
[SourceQuality "1"]
[TimeControl "5400+30"]

1. e4 {[%emt 0:00:02]} e5 {[%emt 0:00:44]} 2. Nf3 {[%emt 0:00:04]} Nc6 {[%emt 0:00:05]} 3. Bc4 {[%emt 0:00:02]} Nf6 {[%emt 0:00:32]} 4. d3 {[%emt 0:00:14]} Bc5 {[%emt 0:01:41]} 5. O-O {[%emt 0:00:16]} d6 {[%emt 0:00:05]} 6. h3 {[%emt 0:00:28]} Na5 {[%emt 0:01:35]} 7. Bb3 {[%emt 0:01:02]} Nxb3 {[%emt 0:01:51]} 8. axb3 {[%emt 0:00:07]} c6 {[%emt 0:01:14]} 9. Nc3 {[%emt 0:01:24]} O-O {[%emt 0:01:39]} 10. Be3 {[%emt 0:02:05]} Bb4 {[%emt 0:04:32]} 11. Bg5 {[%emt 0:05:00]} Re8 {[%emt 0:05:41]} 12. Re1 {[%emt 0:02:26]} h6 {[%emt 0:03:12]} 13. Bh4 {[%emt 0:00:48]} g5 {[%emt 0:04:59]} 14. Bg3 {[%emt 0:00:13]} Nh7 {[%emt 0:03:20]} 15. d4 {[%emt 0:01:41]} f6 {[%emt 0:01:06]} 16. Qd3 {[%emt 0:02:22]} Ba5 {[%emt 0:04:41]} 17. Red1 {[%emt 0:03:08]} Qc7 {[%emt 0:07:08]} 18. b4 {[%emt 0:02:03]} Bb6 {[%emt 0:00:53]} 19. Na4 {[%emt 0:04:55]} Be6 {[%emt 0:04:32]} 20. c4 {[%emt 0:00:50]} Qf7 {[%emt 0:04:11]} 21. d5 {[%emt 0:04:04]} cxd5 {[%emt 0:01:31]} 22. cxd5 {[%emt 0:00:04]} Bd7 {[%emt 0:00:26]} 23. Nxb6 {[%emt 0:00:05]} axb6 {[%emt 0:00:06]} 24. Qe3 {[%emt 0:00:04]} Rxa1 {[%emt 0:04:04]} 25. Rxa1 {[%emt 0:00:05]} f5 {[%emt 0:00:09]} 26. Bh2 {[%emt 0:01:33]} fxe4 {[%emt 0:02:55]} 27. Nd2 {[%emt 0:02:16]} Qxd5 {[%emt 0:01:02]} 28. Nxe4 {[%emt 0:00:08]} Bc6 {[%emt 0:03:19]} 29. f3 {[%emt 0:00:17]} b5 {[%emt 0:01:39]} 30. Nf2 {[%emt 0:03:28]} Qe6 {[%emt 0:07:10]} 31. Rd1 {[%emt 0:01:54]} Nf6 {[%emt 0:01:22]} 32. Ng4 {[%emt 0:01:03]} Nd5 {[%emt 0:01:35]} 33. Qd2 {[%emt 0:01:07]} Rd8 {[%emt 0:02:50]} 34. Re1 {[%emt 0:02:03]} Ra8 {[%emt 0:02:16]} 35. h4 {[%emt 0:00:35]} Qg6 {[%emt 0:00:17]} 36. h5 {[%emt 0:01:16]} Qe6 {[%emt 0:03:42]} 37. Nf2 {[%emt 0:02:36]} Nf6 {[%emt 0:01:27]} 38. f4 {[%emt 0:02:10]} gxf4 {[%emt 0:01:44]} 39. Bxf4 {[%emt 0:01:17]} Kh8 {[%emt 0:02:00]} 40. Bxh6 {[%emt 0:01:16]} Rg8 {[%emt 0:00:49]} 41. Bg5 {[%emt 0:00:07]} Nh7 {[%emt 0:00:35]} 42. Nh3 {[%emt 0:00:05]} Qg4 {[%emt 0:01:42]} 43. Be3 {[%emt 0:00:49]} Qxh3 {[%emt 0:00:58]} 44. Re2 {[%emt 0:00:08]} Bxg2 {[%emt 0:00:49]} 0-1

[Event "36th Indian-ch U13 Open 2023"]
[Site "Secunderabad"]
[Date "2023.12.07"]
[Round "7.6"]
[White "Chinmay Kowshik"]
[Black "Shenvi, Mohit"]
[Result "0-1"]
[ECO "E01"]
[WhiteElo "1761"]
[BlackElo "1940"]
[Annotator "RC"]
[PlyCount "96"]
[EventDate "2023.12.04"]
[EventType "swiss"]
[EventCountry "IND"]
[SourceTitle "playchess.com"]
[Source "ChessBase"]
[SourceQuality "1"]
[TimeControl "5400+30"]

1. d4 {[%emt 0:00:05]} Nf6 {[%emt 0:00:09]} 2. c4 {[%emt 0:00:06]} e6 {[%emt 0:00:07]} 3. Nf3 {[%emt 0:00:03]} d5 {[%emt 0:00:15]} 4. g3 {[%emt 0:00:05]} c6 {[%emt 0:00:19]} 5. Bg2 {[%emt 0:00:32]} Bd6 {[%emt 0:00:27]} 6. Qc2 {[%emt 0:00:28]} O-O {[%emt 0:00:47]} 7. O-O {[%emt 0:00:08]} Nbd7 {[%emt 0:00:26]} 8. Nbd2 {[%emt 0:00:05]} Re8 {[%emt 0:00:50]} 9. e4 {[%emt 0:00:09]} Nxe4 {[%emt 0:01:56]} 10. Nxe4 {[%emt 0:00:07]} dxe4 {[%emt 0:00:09]} 11. Qxe4 {[%emt 0:00:18]} Nf6 {[%emt 0:00:20]} 12. Qc2 {[%emt 0:00:27]} h6 {[%emt 0:01:00]} 13. b3 {[%emt 0:00:40]} Qc7 {[%emt 0:05:09]} 14. Bb2 {[%emt 0:01:37]} b6 {[%emt 0:00:30]} 15. c5 {[%emt 0:00:55]} bxc5 {[%emt 0:04:53]} 16. dxc5 {[%emt 0:00:12]} Be7 {[%emt 0:00:23]} 17. Ne5 {[%emt 0:10:33]} Nd5 {[%emt 0:01:17]} 18. Rfd1 {[%emt 0:19:32]} Ba6 {[%emt 0:00:56]} 19. Ng4 {[%emt 0:06:18]} Rad8 {[%emt 0:02:14]} 20. Be5 {[%emt 0:10:33]} Qa5 {[%emt 0:01:00]} 21. Rd4 {[%emt 0:05:29]} f5 {[%emt 0:13:28]} 22. Nxh6+ {[%emt 0:20:58]} gxh6 {[%emt 0:02:32]} 23. Qd1 {[%emt 0:01:47]} Nf6 {[%emt 0:02:48]} 24. Bxc6 {[%emt 0:01:30]} Rxd4 {[%emt 0:01:14]} 25. Qxd4 {[%emt 0:00:35]} Rd8 {[%emt 0:01:28]} 26. Bd6 {[%emt 0:06:35]} Kf7 {[%emt 0:01:31]} 27. Qb2 {[%emt 0:01:03]} Bxd6 {[%emt 0:00:28]} 28. cxd6 {[%emt 0:01:37]} Rxd6 {[%emt 0:00:23]} 29. b4 {[%emt 0:00:59]} Qb6 {[%emt 0:01:23]} 30. Bf3 {[%emt 0:00:08]} Qd4 {[%emt 0:01:02]} 31. Qc1 {[%emt 0:00:28]} Kg6 {[%emt 0:00:12]} 32. Rb1 {[%emt 0:00:21]} Bc4 {[%emt 0:02:05]} 33. Qe1 {[%emt 0:00:39]} e5 {[%emt 0:01:17]} 34. Rd1 {[%emt 0:00:32]} Bd3 {[%emt 0:00:31]} 35. h4 {[%emt 0:01:11]} e4 {[%emt 0:01:44]} 36. h5+ {[%emt 0:00:57]} Kf7 {[%emt 0:00:33]} 37. Bg2 {[%emt 0:00:12]} Nxh5 {[%emt 0:00:36]} 38. Kh2 {[%emt 0:00:33]} Nf6 {[%emt 0:00:40]} 39. Rc1 {[%emt 0:00:13]} Ng4+ {[%emt 0:00:56]} 40. Kg1 {[%emt 0:00:08]} Kg6 {[%emt 0:01:25]} 41. Rc7 {[%emt 0:01:08]} Bb5 {[%emt 0:00:53]} 42. Rc1 {[%emt 0:00:49]} Qd2 {[%emt 0:02:10]} 43. Bh3 {[%emt 0:00:07]} Qxe1+ {[%emt 0:01:07]} 44. Rxe1 {[%emt 0:00:08]} Ne5 {[%emt 0:00:12]} 45. Rc1 {[%emt 0:00:16]} Rc6 {[%emt 0:00:05]} 46. Rxc6+ {[%emt 0:00:15]} Nxc6 {[%emt 0:00:07]} 47. a3 {[%emt 0:00:06]} Nd4 {[%emt 0:00:05]} 48. Bg2 {[%emt 0:00:25]} Nc2 {[%emt 0:00:13]} 0-1

[Event "36th Indian-ch U13 Open 2023"]
[Site "Secunderabad"]
[Date "2023.12.07"]
[Round "7.7"]
[White "Darshan, V P S"]
[Black "Vihaan Karthikeya N"]
[Result "1-0"]
[ECO "C06"]
[WhiteElo "1670"]
[BlackElo "1736"]
[Annotator "NA RC"]
[PlyCount "135"]
[EventDate "2023.12.04"]
[EventType "swiss"]
[EventCountry "IND"]
[SourceTitle "playchess.com"]
[Source "ChessBase"]
[SourceQuality "1"]
[TimeControl "5400+30"]

1. e4 {[%emt 0:00:03]} e6 {[%emt 0:00:04]} 2. d4 {[%emt 0:00:09]} d5 {[%emt 0:00:07]} 3. Nd2 {[%emt 0:00:07]} Nf6 {[%emt 0:00:10]} 4. e5 {[%emt 0:00:07]} Nfd7 {[%emt 0:00:05]} 5. Bd3 {[%emt 0:00:25]} c5 {[%emt 0:00:06]} 6. c3 {[%emt 0:00:03]} Nc6 {[%emt 0:00:04]} 7. Ne2 {[%emt 0:00:04]} cxd4 {[%emt 0:00:04]} 8. cxd4 {[%emt 0:00:04]} f6 {[%emt 0:00:17]} 9. exf6 {[%emt 0:00:15]} Nxf6 {[%emt 0:00:12]} 10. Nf3 {[%emt 0:00:06]} Bd6 {[%emt 0:00:05]} 11. O-O {[%emt 0:00:24]} Qc7 {[%emt 0:00:06]} 12. Bg5 {[%emt 0:00:10]} O-O {[%emt 0:00:10]} 13. Bh4 {[%emt 0:03:09]} Nh5 {[%emt 0:00:07]} 14. Qc2 {[%emt 0:00:25]} h6 {[%emt 1:35:53]} 15. Bh7+ {[%emt 0:00:12]} Kh8 {[%emt 0:00:00]} 16. Bg6 {[%emt 0:00:03]} Nf4 {[%emt 0:00:00]} 17. Nxf4 {[%emt 0:03:10]} Bxf4 {[%emt 0:00:00]} 18. Bg3 {[%emt 0:00:17]} Bxg3 {[%emt 0:00:00]} 19. hxg3 {[%emt 0:00:21]} Qd6 {[%emt 0:00:00]} 20. Rfe1 {[%emt 0:03:05]} Bd7 {[%emt 0:00:00]} 21. Ne5 {[%emt 0:05:57]} Nxe5 {[%emt 0:00:00]} 22. Rxe5 {[%emt 1:22:54]} Rf6 {[%emt 0:00:00]} 23. Rd1 {[%emt 0:00:00]} Rc8 {[%emt 0:00:00]} 24. Qb1 {[%emt 0:00:00]} Qf8 {[%emt 0:00:00]} 25. f3 {[%emt 0:00:00]} Qb4 {[%emt 0:00:00]} 26. b3 {[%emt 0:00:00]} a5 {[%emt 0:00:00]} 27. g4 {[%emt 0:00:00]} Be8 {[%emt 0:00:00]} 28. Bxe8 {[%emt 0:00:00]} Rxe8 {[%emt 0:00:00]} 29. Qd3 {[%emt 0:00:00]} Kg8 {[%emt 0:00:00]} 30. Qe3 {[%emt 0:00:00]} Kf7 {[%emt 0:00:00]} 31. f4 {[%emt 0:00:00]} Qd6 {[%emt 0:00:00]} 32. Re1 {[%emt 0:00:00]} Qd7 {[%emt 0:00:00]} 33. g3 {[%emt 0:00:00]} g6 {[%emt 0:00:00]} 34. Qd2 {[%emt 0:00:00]} b6 {[%emt 0:00:00]} 35. Qh2 {[%emt 0:00:00]} Qc8 {[%emt 0:00:00]} 36. R5e3 {[%emt 0:00:00]} Rh8 {[%emt 0:00:00]} 37. Qd2 {[%emt 0:00:00]} Qd7 {[%emt 0:00:00]} 38. Kg2 {[%emt 0:08:00]} Qc8 {[%emt 0:00:00]} 39. Rc1 {[%emt 0:00:00]} Qd7 {[%emt 0:00:00]} 40. Rec3 {[%emt 0:00:00]} Kg8 {[%emt 0:00:00]} 41. Rc7 {[%emt 0:00:00]} Qd6 {[%emt 0:00:00]} 42. R1c6 {[%emt 0:00:00]} Qa3 {[%emt 0:00:00]} 43. Rxb6 {[%emt 0:00:00]} Rh7 {[%emt 0:00:00]} 44. Rc5 {[%emt 0:00:00]} Ra7 {[%emt 0:00:00]} 45. g5 {[%emt 0:00:00]} hxg5 {[%emt 0:00:00]} 46. fxg5 {[%emt 0:00:00]} Rf5 {[%emt 0:00:00]} 47. Rxe6 {[%emt 0:00:00]} Kh7 {[%emt 0:00:00]} 48. Rf6 {[%emt 0:00:00]} Qb4 {[%emt 0:00:00]} 49. Qe3 {[%emt 0:00:00]} Rf7 {[%emt 0:00:00]} 50. Rxf5 {[%emt 0:00:00]} gxf5 {[%emt 0:00:00]} 51. Qe6 {[%emt 0:00:00]} Qb7 {[%emt 0:00:00]} 52. g6+ {[%emt 0:00:00]} Kg7 {[%emt 0:00:00]} 53. Qxf7+ {[%emt 0:00:00]} Qxf7 {[%emt 0:00:00]} 54. gxf7 {[%emt 0:00:00]} Kxf7 {[%emt 0:00:00]} 55. Rxd5 {[%emt 0:00:00]} f4 {[%emt 0:00:00]} 56. g4 {[%emt 0:00:00]} f3+ {[%emt 0:00:00]} 57. Kf1 {[%emt 0:00:00]} f2 {[%emt 0:00:00]} 58. g5 {[%emt 0:00:00]} a4 {[%emt 0:00:00]} 59. b4 {[%emt 0:00:00]} a3 {[%emt 0:00:00]} 60. Re5 {[%emt 0:00:00]} Kg6 {[%emt 0:00:00]} 61. b5 {[%emt 0:00:00]} Kh5 {[%emt 0:00:00]} 62. g6+ {[%emt 0:00:00]} Kxg6 {[%emt 0:00:00]} 63. b6 {[%emt 0:00:00]} Kf6 {[%emt 0:00:00]} 64. b7 {[%emt 0:00:00]} Kf7 {[%emt 0:00:00]} 65. b8=Q {[%emt 0:00:00]} Kg7 {[%emt 0:00:00]} 66. Qc7+ {[%emt 0:00:00]} Kf6 {[%emt 0:00:00]} 67. Qd6+ {[%emt 0:00:00]} Kg7 {[%emt 0:00:00]} 68. Re7+ {[%emt 0:00:00]} 1-0

[Event "36th Indian-ch U13 Open 2023"]
[Site "Secunderabad"]
[Date "2023.12.07"]
[Round "7.8"]
[White "Malvin Joshua"]
[Black "Vatsal Singla"]
[Result "0-1"]
[ECO "B96"]
[WhiteElo "1540"]
[BlackElo "1714"]
[Annotator "NA RC"]
[PlyCount "122"]
[EventDate "2023.12.04"]
[EventType "swiss"]
[EventCountry "IND"]
[SourceTitle "playchess.com"]
[Source "ChessBase"]
[SourceQuality "1"]
[TimeControl "5400+30"]

1. e4 {[%emt 0:00:04]} c5 {[%emt 0:00:07]} 2. Nf3 {[%emt 0:00:09]} d6 {[%emt 0:00:05]} 3. d4 {[%emt 0:00:06]} cxd4 {[%emt 0:00:02]} 4. Nxd4 {[%emt 0:00:08]} Nf6 {[%emt 0:00:03]} 5. Nc3 {[%emt 0:00:31]} a6 {[%emt 0:00:03]} 6. Bg5 {[%emt 0:00:06]} e6 {[%emt 0:00:05]} 7. f4 {[%emt 0:00:04]} h6 {[%emt 0:00:04]} 8. Bh4 {[%emt 0:00:09]} Qb6 {[%emt 0:00:03]} 9. a3 {[%emt 0:00:14]} Be7 {[%emt 0:00:52]} 10. Bf2 {[%emt 0:00:11]} Qc7 {[%emt 0:00:06]} 11. Qf3 {[%emt 0:00:18]} b5 {[%emt 0:01:24]} 12. O-O-O {[%emt 0:03:26]} Bb7 {[%emt 0:00:22]} 13. Bd3 {[%emt 0:01:13]} Nbd7 {[%emt 0:00:14]} 14. Rhe1 {[%emt 0:03:51]} Nc5 {[%emt 0:01:26]} 15. g4 {[%emt 0:01:48]} d5 {[%emt 0:01:43]} 16. e5 {[%emt 0:02:05]} Nfe4 {[%emt 0:01:50]} 17. Bxe4 {[%emt 0:00:33]} Nxe4 {[%emt 0:00:19]} 18. Re3 {[%emt 0:03:52]} b4 {[%emt 0:07:05]} 19. axb4 {[%emt 0:00:39]} Bxb4 {[%emt 0:00:04]} 20. Na2 {[%emt 0:01:05]} Bc5 {[%emt 0:21:14]} 21. Bg3 {[%emt 0:02:40]} Qa5 {[%emt 0:03:49]} 22. Nc3 {[%emt 0:01:28]} Nxc3 {[%emt 0:04:47]} 23. bxc3 {[%emt 0:01:40]} Rb8 {[%emt 0:09:10]} 24. Red3 {[%emt 0:03:14]} O-O {[%emt 0:47:33]} 25. f5 {[%emt 0:00:07]} Rfc8 {[%emt 0:00:00]} 26. Kd2 {[%emt 0:03:30]} Bxd4 {[%emt 0:00:00]} 27. Rxd4 {[%emt 1:10:49]} Rc4 {[%emt 0:00:00]} 28. Bf2 {[%emt 0:00:00]} Ba8 {[%emt 0:00:00]} 29. f6 {[%emt 0:00:00]} Rbc8 {[%emt 0:00:00]} 30. Rxc4 {[%emt 0:00:00]} dxc4 {[%emt 0:00:00]} 31. Qe3 {[%emt 0:00:00]} Rd8+ {[%emt 0:00:00]} 32. Ke1 {[%emt 0:00:00]} gxf6 {[%emt 0:00:00]} 33. Rxd8+ {[%emt 0:00:00]} Qxd8 {[%emt 0:00:00]} 34. Qxh6 {[%emt 0:00:00]} Bf3 {[%emt 0:00:00]} 35. Qd2 {[%emt 0:00:00]} Qxd2+ {[%emt 0:00:00]} 36. Kxd2 {[%emt 0:00:00]} fxe5 {[%emt 0:00:00]} 37. h3 {[%emt 0:00:00]} f5 {[%emt 0:00:00]} 38. Bb6 {[%emt 0:00:00]} Kf7 {[%emt 0:00:00]} 39. Bc7 {[%emt 0:00:00]} Kf6 {[%emt 0:00:07]} 40. Bd8+ {[%emt 0:00:00]} Kg6 {[%emt 0:00:02]} 41. Bc7 {[%emt 0:00:00]} e4 {[%emt 0:00:36]} 42. Ke3 {[%emt 0:00:00]} Bg2 {[%emt 0:01:02]} 43. gxf5+ {[%emt 0:00:00]} exf5 {[%emt 0:00:02]} 44. h4 {[%emt 0:00:00]} Kh5 {[%emt 0:00:14]} 45. Kf4 {[%emt 0:00:00]} Bh3 {[%emt 0:00:02]} 46. Bd8 {[%emt 0:00:00]} Bg4 {[%emt 0:00:28]} 47. Bb6 {[%emt 0:00:00]} Kxh4 {[%emt 0:00:14]} 48. Ke3 {[%emt 0:00:00]} Kg3 {[%emt 0:01:17]} 49. Bc7+ {[%emt 0:00:00]} Kg2 {[%emt 0:00:05]} 50. Bd6 {[%emt 0:00:00]} a5 {[%emt 0:00:19]} 51. Bc7 {[%emt 0:00:00]} a4 {[%emt 0:00:45]} 52. Bd6 {[%emt 0:00:00]} Bd1 {[%emt 0:00:30]} 53. Kd2 {[%emt 0:00:00]} Kf1 {[%emt 0:04:07]} 54. Kxd1 {[%emt 0:00:00]} e3 {[%emt 0:00:03]} 55. Bg3 {[%emt 0:00:00]} e2+ {[%emt 0:00:10]} 56. Kd2 {[%emt 0:00:00]} f4 {[%emt 0:00:10]} 57. Be1 {[%emt 0:00:00]} f3 {[%emt 0:00:20]} 58. Ke3 {[%emt 0:00:00]} Kxe1 {[%emt 0:00:05]} 59. Kxf3 {[%emt 0:00:00]} Kd2 {[%emt 0:00:22]} 60. Ke4 {[%emt 0:00:00]} e1=Q+ {[%emt 0:00:09]} 61. Kd5 {[%emt 0:00:00]} Kxc3 {[%emt 0:07:21]} 0-1

[Event "36th Indian-ch U13 Open 2023"]
[Site "Secunderabad"]
[Date "2023.12.07"]
[Round "7.9"]
[White "Sagnik Dutta"]
[Black "Vignesh Kannan P"]
[Result "1/2-1/2"]
[ECO "D40"]
[WhiteElo "1520"]
[BlackElo "1648"]
[Annotator "NA RC"]
[PlyCount "55"]
[EventDate "2023.12.04"]
[EventType "swiss"]
[EventCountry "IND"]
[SourceTitle "playchess.com"]
[Source "ChessBase"]
[SourceQuality "1"]
[TimeControl "5400+30"]

1. d4 {[%emt 0:00:07]} Nf6 {[%emt 0:01:12]} 2. Nf3 {[%emt 0:00:11]} d5 {[%emt 0:01:56]} 3. e3 {[%emt 0:00:24]} c5 {[%emt 0:02:52]} 4. c4 {[%emt 0:00:28]} e6 {[%emt 0:02:49]} 5. Nc3 {[%emt 0:01:03]} Nc6 {[%emt 0:01:37]} 6. a3 {[%emt 0:03:13]} a6 {[%emt 0:11:55]} 7. dxc5 {[%emt 0:00:40]} Bxc5 {[%emt 0:01:11]} 8. b4 {[%emt 0:00:20]} Be7 {[%emt 0:05:59]} 9. Bb2 {[%emt 0:01:25]} O-O {[%emt 0:03:05]} 10. cxd5 {[%emt 0:02:33]} exd5 {[%emt 0:13:40]} 11. h3 {[%emt 0:01:07]} Be6 {[%emt 0:12:35]} 12. Bd3 {[%emt 0:00:48]} Nd7 {[%emt 0:06:33]} 13. O-O {[%emt 0:03:05]} Bf6 {[%emt 0:02:19]} 14. Qc2 {[%emt 0:03:10]} h6 {[%emt 0:03:57]} 15. Ne2 {[%emt 0:00:57]} Rc8 {[%emt 0:02:51]} 16. Qd2 {[%emt 0:01:29]} Nde5 {[%emt 0:02:06]} 17. Nxe5 {[%emt 0:04:13]} Nxe5 {[%emt 0:01:06]} 18. Bxe5 {[%emt 0:05:11]} Bxe5 {[%emt 0:04:27]} 19. Nd4 {[%emt 0:00:47]} Bxh3 {[%emt 0:04:44]} 20. gxh3 {[%emt 0:01:43]} Qg5+ {[%emt 0:00:42]} 21. Kh1 {[%emt 0:00:07]} Bxd4 {[%emt 0:00:35]} 22. f4 {[%emt 0:04:07]} Qg3 {[%emt 0:03:56]} 23. exd4 {[%emt 0:00:19]} Qxh3+ {[%emt 0:00:26]} 24. Kg1 {[%emt 0:00:06]} Qg3+ {[%emt 0:00:16]} 25. Kh1 {[%emt 0:00:05]} Qh3+ {[%emt 0:00:54]} 26. Kg1 {[%emt 0:00:08]} Qg3+ {[%emt 0:00:23]} 27. Kh1 {[%emt 0:00:05]} Qh3+ {[%emt 0:00:25]} 28. Kg1 {[%emt 0:00:05]} 1/2-1/2

[Event "36th Indian-ch U13 Open 2023"]
[Site "Secunderabad"]
[Date "2023.12.07"]
[Round "7.10"]
[White "Banik Hrishikesh Kumar"]
[Black "Aaryan Balaji Rao"]
[Result "1-0"]
[ECO "B42"]
[WhiteElo "1627"]
[BlackElo "1556"]
[Annotator "NA RC"]
[PlyCount "79"]
[EventDate "2023.12.04"]
[EventType "swiss"]
[EventCountry "IND"]
[SourceTitle "playchess.com"]
[Source "ChessBase"]
[SourceQuality "1"]
[TimeControl "5400+30"]

1. e4 {[%emt 0:00:13]} c5 {[%emt 0:00:05]} 2. Nf3 {[%emt 0:00:24]} e6 {[%emt 0:00:06]} 3. d4 {[%emt 0:00:09]} cxd4 {[%emt 0:00:10]} 4. Nxd4 {[%emt 0:00:09]} a6 {[%emt 0:00:04]} 5. Bd3 {[%emt 0:00:33]} Qc7 {[%emt 0:00:18]} 6. O-O {[%emt 0:01:52]} Nc6 {[%emt 0:00:19]} 7. Nxc6 {[%emt 0:06:39]} dxc6 {[%emt 0:00:08]} 8. Qe2 {[%emt 0:00:13]} e5 {[%emt 0:04:22]} 9. a4 {[%emt 0:02:09]} Bc5 {[%emt 0:03:49]} 10. Nd2 {[%emt 0:02:46]} Ne7 {[%emt 0:09:11]} 11. Nc4 {[%emt 0:13:37]} O-O {[%emt 0:13:54]} 12. Ne3 {[%emt 0:01:29]} Ng6 {[%emt 0:09:41]} 13. g3 {[%emt 0:04:23]} Bh3 {[%emt 0:09:29]} 14. Rd1 {[%emt 0:00:28]} b5 {[%emt 0:01:58]} 15. Nf5 {[%emt 0:02:48]} Ne7 {[%emt 0:01:14]} 16. Nxg7 {[%emt 0:09:15]} Kxg7 {[%emt 0:04:11]} 17. Qh5 {[%emt 0:00:06]} f5 {[%emt 0:04:06]} 18. Bh6+ {[%emt 0:06:12]} Kh8 {[%emt 0:01:31]} 19. Bxf8 {[%emt 0:08:37]} Rxf8 {[%emt 0:00:50]} 20. Qxh3 {[%emt 0:00:05]} f4 {[%emt 0:01:05]} 21. Rd2 {[%emt 0:02:50]} Qb6 {[%emt 0:03:23]} 22. Kg2 {[%emt 0:03:26]} bxa4 {[%emt 0:04:20]} 23. c3 {[%emt 0:01:34]} Ng6 {[%emt 0:01:09]} 24. Qe6 {[%emt 0:03:09]} a5 {[%emt 0:04:52]} 25. Rad1 {[%emt 0:03:15]} Qa7 {[%emt 0:05:59]} 26. Bc4 {[%emt 0:01:42]} fxg3 {[%emt 0:01:16]} 27. fxg3 {[%emt 0:01:15]} Qg7 {[%emt 0:00:34]} 28. Kh1 {[%emt 0:00:16]} Be7 {[%emt 0:03:43]} 29. Rf1 {[%emt 0:01:19]} Qh6 {[%emt 0:01:38]} 30. Rxf8+ {[%emt 0:00:09]} Qxf8 {[%emt 0:00:01]} 31. Qf7 {[%emt 0:01:46]} Qxf7 {[%emt 0:00:41]} 32. Bxf7 {[%emt 0:00:07]} Bg5 {[%emt 0:00:28]} 33. Rd1 {[%emt 0:00:18]} Ne7 {[%emt 0:00:11]} 34. Ra1 {[%emt 0:00:24]} Kg7 {[%emt 0:00:23]} 35. Bc4 {[%emt 0:00:08]} Nc8 {[%emt 0:00:14]} 36. Bd3 {[%emt 0:00:32]} Nb6 {[%emt 0:01:44]} 37. Bc2 {[%emt 0:00:05]} Nc4 {[%emt 0:00:08]} 38. Bxa4 {[%emt 0:00:36]} c5 {[%emt 0:00:06]} 39. Bb5 {[%emt 0:00:30]} Nxb2 {[%emt 0:00:08]} 40. Rb1 {[%emt 0:00:07]} 1-0

[Event "36th Indian-ch U13 Open 2023"]
[Site "Secunderabad"]
[Date "2023.12.08"]
[Round "8.1"]
[White "Sharnarthi Viresh"]
[Black "Vivaan Vijay Saraogi"]
[Result "1-0"]
[ECO "A43"]
[WhiteElo "1850"]
[BlackElo "1982"]
[Annotator "RC"]
[PlyCount "79"]
[EventDate "2023.12.04"]
[EventType "swiss"]
[EventCountry "IND"]
[SourceTitle "playchess.com"]
[Source "ChessBase"]
[SourceQuality "1"]
[TimeControl "5400+30"]

1. d4 {[%emt 0:00:03]} Nf6 {[%emt 0:00:05]} 2. Nf3 {[%emt 0:00:11]} c5 {[%emt 0:00:10]} 3. d5 {[%emt 0:00:10]} b5 {[%emt 0:00:10]} 4. Bg5 {[%emt 0:00:14]} Qb6 {[%emt 0:00:11]} 5. Bxf6 {[%emt 0:08:40]} Qxf6 {[%emt 0:00:07]} 6. c3 {[%emt 0:00:22]} Qb6 {[%emt 0:00:16]} 7. e4 {[%emt 0:00:59]} g6 {[%emt 0:02:16]} 8. Nbd2 {[%emt 0:00:08]} Bg7 {[%emt 0:01:11]} 9. a4 {[%emt 0:00:06]} b4 {[%emt 0:00:09]} 10. Nc4 {[%emt 0:00:51]} Qb7 {[%emt 0:00:24]} 11. Qc2 {[%emt 0:17:09]} O-O {[%emt 0:02:39]} 12. Bd3 {[%emt 0:03:06]} Na6 {[%emt 0:05:13]} 13. O-O {[%emt 0:02:13]} Qc7 {[%emt 0:16:19]} 14. h4 {[%emt 0:06:26]} d6 {[%emt 0:12:09]} 15. h5 {[%emt 0:00:48]} Qd8 {[%emt 0:15:56]} 16. e5 {[%emt 0:07:58]} Nc7 {[%emt 0:24:41]} 17. hxg6 {[%emt 0:08:47]} fxg6 {[%emt 0:00:50]} 18. Rfe1 {[%emt 0:05:12]} Rxf3 {[%emt 0:09:52]} 19. gxf3 {[%emt 0:00:09]} Nxd5 {[%emt 0:00:05]} 20. Qd2 {[%emt 0:16:15]} bxc3 {[%emt 0:00:51]} 21. bxc3 {[%emt 0:00:45]} e6 {[%emt 0:04:51]} 22. Nxd6 {[%emt 0:00:59]} Qh4 {[%emt 0:00:30]} 23. Re4 {[%emt 0:01:13]} Qh5 {[%emt 0:00:18]} 24. Rae1 {[%emt 0:17:45]} Bh6 {[%emt 0:00:24]} 25. Qb2 {[%emt 0:00:15]} Qxf3 {[%emt 0:02:47]} 26. Be2 {[%emt 0:01:00]} Qxc3 {[%emt 0:00:23]} 27. Qxc3 {[%emt 0:00:24]} Nxc3 {[%emt 0:00:01]} 28. Rh4 {[%emt 0:01:20]} Bd2 {[%emt 0:01:09]} 29. Bf3 {[%emt 0:00:02]} Rb8 {[%emt 0:00:10]} 30. Ra1 {[%emt 0:00:01]} Bd7 {[%emt 0:00:46]} 31. Rc4 {[%emt 0:01:04]} a6 {[%emt 0:00:35]} 32. Rxc5 {[%emt 0:00:11]} Nxa4 {[%emt 0:00:30]} 33. Rc7 {[%emt 0:00:13]} Bb5 {[%emt 0:00:30]} 34. Bg4 {[%emt 0:01:44]} Bf4 {[%emt 0:00:31]} 35. Bxe6+ {[%emt 0:00:18]} Kh8 {[%emt 0:00:01]} 36. Kg2 {[%emt 0:00:39]} Be8 {[%emt 0:01:30]} 37. Nxe8 {[%emt 0:00:16]} Bxe5 {[%emt 0:00:00]} 38. Rxa4 {[%emt 0:00:04]} Bxc7 {[%emt 0:00:28]} 39. Nxc7 {[%emt 0:00:02]} Rb6 {[%emt 0:00:13]} 40. Rxa6 {[%emt 0:00:06]} 1-0